bitfinex-derivatives/quotes_BTCF0:USTF0_20240925
["timestamp","ask_amount","ask_price","bid_price","bid_amount"]
[1727253443640,0.003,63897.0,63896.0,1.16277132]
[1727253445837,0.003,63897.0,63896.0,0.99452332]
[1727253446342,0.003,63897.0,63896.0,1.08452332]
[1727253446539,0.003,63897.0,63896.0,1.05322332]
[1727253449231,0.003,63897.0,63896.0,0.33162332]
[1727253449431,0.003,63897.0,63896.0,1.05322332]
[1727253449729,0.003,63897.0,63896.0,0.33162332]
[1727253449933,0.003,63897.0,63896.0,1.05322332]
[1727253450933,0.31622712,63897.0,63896.0,0.97494607]
[1727253451235,0.38709301,63897.0,63896.0,0.25334607]
[1727253451735,0.38709301,63897.0,63896.0,0.97494607]
[1727253452635,0.215065,63897.0,63896.0,0.97494607]
[1727253454246,0.215065,63897.0,63896.0,0.61414607]
[1727253454843,0.215065,63897.0,63896.0,0.25334607]
[1727253455144,0.215065,63897.0,63896.0,0.61414607]
[1727253456352,0.31634514,63897.0,63896.0,0.61414607]
[1727253456537,0.0072,63906.0,63905.0,0.078237]
[1727253456734,0.05054534,63911.0,63906.0,0.078235]
[1727253456940,0.04694534,63912.0,63909.0,0.09]
[1727253457146,0.04694534,63912.0,63907.0,0.17215162]
[1727253457147,0.04694534,63912.0,63911.0,0.4508]
[1727253457453,0.04694534,63912.0,63911.0,0.79237335]
[1727253458350,0.04694534,63913.0,63911.0,0.69845573]
[1727253458850,0.04694534,63913.0,63911.0,0.33765573]
[1727253459050,0.04694534,63913.0,63911.0,0.69845573]
[1727253459251,0.014,63912.0,63911.0,0.62043503]
[1727253459842,0.07494534,63913.0,63911.0,0.62043503]
[1727253460037,0.07494534,63913.0,63911.0,0.69866403]
[1727253460244,0.014,63913.0,63911.0,0.69866403]
[1727253460552,0.014,63912.0,63911.0,0.69866403]
[1727253461554,0.028,63912.0,63911.0,0.69866403]
[1727253462142,0.014,63912.0,63911.0,0.69866403]
[1727253463040,0.028,63912.0,63911.0,0.69866403]
[1727253463640,0.09059379,63912.0,63911.0,0.74544121]
[1727253464247,0.09059379,63912.0,63911.0,0.38464121]
[1727253464454,0.09059379,63912.0,63911.0,0.74544121]
[1727253465339,0.09059379,63912.0,63911.0,0.38464121]
[1727253465544,0.09059379,63912.0,63911.0,0.74544121]
[1727253465852,0.09059379,63912.0,63911.0,0.38464121]
[1727253466048,0.09059379,63912.0,63911.0,0.74544121]
[1727253466446,0.09059379,63912.0,63911.0,0.69866403]
[1727253466841,0.09059379,63912.0,63911.0,0.33786403]
[1727253467051,0.09059379,63912.0,63911.0,0.69866403]
[1727253467252,0.028,63912.0,63911.0,0.33786403]
[1727253467444,0.028,63912.0,63911.0,0.69866403]
[1727253471748,0.29813986,63912.0,63911.0,0.41297105]
[1727253472058,0.29813986,63912.0,63911.0,0.58186722]
[1727253472355,0.29813986,63912.0,63911.0,0.66009622]
[1727253472853,0.28687335,63912.0,63911.0,0.66009622]
[1727253474644,0.28587335,63912.0,63911.0,0.66009622]
[1727253475056,0.28487335,63912.0,63911.0,0.66009622]
[1727253478757,0.026,63912.0,63911.0,0.83433276]
[1727253481356,0.026,63912.0,63911.0,0.51136171]
[1727253482352,0.026,63912.0,63911.0,0.43334101]
[1727253485860,0.026,63912.0,63911.0,0.43340855]
[1727253486374,0.026,63912.0,63911.0,0.43346915]
[1727253486375,0.07288966,63912.0,63911.0,0.43346915]
[1727253486957,0.210257,63912.0,63911.0,0.21189467]
[1727253487667,0.210257,63912.0,63911.0,0.30189467]
[1727253487865,0.210257,63912.0,63911.0,0.13366567]
[1727253488856,0.210257,63912.0,63911.0,0.21189467]
[1727253489056,0.197257,63912.0,63911.0,0.21189467]
[1727253489276,0.189257,63912.0,63911.0,0.21189467]
[1727253490862,0.25677094,63912.0,63908.0,0.32163838]
[1727253491158,0.09,63909.0,63908.0,0.39987138]
[1727253491357,0.27043905,63909.0,63908.0,0.39987138]
[1727253491558,0.34177094,63909.0,63908.0,0.39987138]
[1727253491767,0.27043905,63909.0,63908.0,0.39987138]
[1727253492067,0.27043905,63909.0,63908.0,0.40087138]
[1727253492461,0.27043905,63909.0,63908.0,0.39987138]
[1727253492662,0.27043905,63909.0,63908.0,0.40087138]
[1727253493068,0.27043905,63909.0,63908.0,0.079233]
[1727253493976,0.05086367,63909.0,63908.0,0.1774021]
[1727253500578,0.05086367,63909.0,63908.0,0.17710797]
[1727253500876,0.05086367,63909.0,63908.0,0.27082408]
[1727253501071,0.05086367,63909.0,63908.0,0.17710797]
[1727253501405,0.05086367,63909.0,63906.0,0.15633541]
[1727253501406,0.52030367,63909.0,63906.0,0.15633541]
[1727253501672,0.078232,63909.0,63908.0,0.06249366]
[1727253501873,0.078233,63908.0,63906.0,0.078235]
[1727253502077,0.02536558,63907.0,63906.0,0.078235]
[1727253502279,0.06892538,63907.0,63906.0,0.078235]
[1727253502579,0.02536384,63907.0,63906.0,0.078235]
[1727253502780,0.0666,63913.0,63910.0,0.078231]
[1727253502781,0.09384605,63911.0,63910.0,0.078231]
[1727253504676,0.09584605,63911.0,63910.0,0.078231]
[1727253504878,0.12120899,63911.0,63910.0,0.078231]
[1727253505080,0.12220899,63911.0,63910.0,0.078231]
[1727253505278,0.12220897,63911.0,63910.0,0.078231]
[1727253508980,0.12220897,63911.0,63910.0,0.17608745]
[1727253508981,0.003,63911.0,63910.0,0.17608745]
[1727253514681,0.003,63911.0,63910.0,0.34973381]
[1727253515187,0.003,63911.0,63910.0,0.44344992]
[1727253519489,0.003,63911.0,63910.0,0.44338711]
[1727253523800,0.003,63911.0,63910.0,0.349671]
[1727253524098,0.07218652,63911.0,63910.0,0.25187736]
[1727253524415,0.07218652,63911.0,63910.0,0.34187736]
[1727253524788,0.07221003,63911.0,63910.0,0.34187736]
[1727253525896,0.07221003,63911.0,63910.0,0.34187736]
[1727253526292,0.07221003,63911.0,63910.0,0.25187736]
[1727253526499,0.07221003,63911.0,63910.0,0.34187736]
[1727253527592,0.0283622,63911.0,63910.0,0.34187736]
[1727253529098,0.0968153,63911.0,63910.0,0.34187736]
[1727253529306,0.1221775,63911.0,63910.0,0.34187736]
[1727253529605,0.02836104,63911.0,63910.0,0.34187736]
[1727253532097,0.003,63911.0,63910.0,0.43909697]
[1727253534106,0.0036,63917.0,63910.0,0.36086597]
[1727253534307,0.0036,63919.0,63915.0,0.54444832]
[1727253534498,0.0036,63922.0,63921.0,0.078217]
[1727253534807,0.04690653,63925.0,63921.0,0.42950474]
[1727253535004,0.0036,63929.0,63923.0,0.07801529]
[1727253535005,0.04690653,63926.0,63923.0,0.07801529]
[1727253535201,0.078211,63926.0,63922.0,0.15623129]
[1727253535406,0.078211,63926.0,63923.0,0.16682645]
[1727253536101,0.04690653,63928.0,63923.0,0.24504145]
[1727253536310,0.3748,63924.0,63923.0,0.24504145]
[1727253537500,0.3888,63924.0,63923.0,0.24504145]
[1727253537896,0.3748,63924.0,63923.0,0.24504145]
[1727253538102,0.3888,63924.0,63923.0,0.24604145]
[1727253539112,0.51088815,63924.0,63923.0,0.24604145]
[1727253542517,0.510873,63924.0,63923.0,0.24604145]
[1727253543508,0.150073,63924.0,63923.0,0.24604145]
[1727253544913,0.09811167,63924.0,63923.0,0.24604145]
[1727253545120,0.13731347,63924.0,63923.0,0.24604145]
[1727253545720,0.20742514,63924.0,63923.0,0.24604145]
[1727253546317,0.20342514,63924.0,63923.0,0.24604145]
[1727253547019,0.01,63924.0,63923.0,0.24604145]
[1727253547225,0.02,63924.0,63923.0,0.24704145]
[1727253552522,0.02,63924.0,63923.0,0.42150027]
[1727253552832,0.02,63924.0,63923.0,0.34360786]
[1727253553328,0.02,63924.0,63923.0,0.42150272]
[1727253553531,0.02,63924.0,63923.0,0.32493631]
[1727253554228,0.02,63924.0,63923.0,0.42151297]
[1727253556620,0.02,63924.0,63923.0,0.34361811]
[1727253556820,0.02,63924.0,63923.0,0.34359809]
[1727253557436,0.02,63924.0,63923.0,0.42181309]
[1727253558130,0.02,63924.0,63923.0,0.51546141]
[1727253559024,0.02,63924.0,63923.0,0.43724641]
[1727253559429,0.0036,63929.0,63928.0,0.078209]
[1727253559729,0.0346,63933.0,63928.0,0.4508]
[1727253559929,0.3918,63933.0,63931.0,0.06233297]
[1727253560437,0.43864474,63933.0,63929.0,0.06233297]
[1727253560730,0.43864474,63933.0,63932.0,0.04676064]
[1727253561139,0.3918,63933.0,63932.0,0.04676064]
[1727253561441,0.4028,63933.0,63932.0,0.04676064]
[1727253562029,0.4038,63933.0,63932.0,0.04776064]
[1727253562227,0.4038,63933.0,63932.0,0.001]
[1727253562228,0.72739307,63933.0,63932.0,0.001]
[1727253562620,0.59556188,63933.0,63932.0,0.001]
[1727253562825,0.59556188,63933.0,63932.0,0.079204]
[1727253563940,0.59556188,63933.0,63932.0,0.080204]
[1727253563941,0.58656188,63933.0,63932.0,0.080204]
[1727253565540,0.66476388,63933.0,63932.0,0.080204]
[1727253566636,0.6648667,63933.0,63932.0,0.080204]
[1727253569237,0.6648667,63933.0,63932.0,0.14253697]
[1727253569238,0.54454671,63933.0,63932.0,0.14253697]
[1727253570834,0.54454671,63933.0,63932.0,0.080204]
[1727253571035,0.54454671,63933.0,63932.0,0.14253697]
[1727253574739,0.54454671,63933.0,63932.0,0.06433297]
[1727253575142,0.482002,63933.0,63932.0,0.06433297]
[1727253575440,0.572002,63933.0,63932.0,0.06433297]
[1727253577344,0.64298747,63933.0,63932.0,0.002]
[1727253581246,0.64299588,63933.0,63932.0,0.002]
[1727253584432,0.572002,63933.0,63932.0,0.002]
[1727253587447,0.211202,63933.0,63932.0,0.002]
[1727253587648,0.572002,63933.0,63932.0,0.002]
[1727253589949,0.572002,63933.0,63932.0,0.06445813]
[1727253590149,0.6502262,63933.0,63932.0,0.06445813]
[1727253590336,0.572002,63933.0,63932.0,0.002]
[1727253592339,0.28233435,63933.0,63932.0,0.002]
[1727253593050,0.69627784,63933.0,63932.0,0.002]
[1727253593446,0.33547784,63933.0,63932.0,0.002]
[1727253593646,0.69627784,63933.0,63932.0,0.002]
[1727253593843,0.7526747,63933.0,63932.0,0.002]
[1727253594044,0.8308767,63933.0,63932.0,0.002]
[1727253594649,0.77436752,63933.0,63932.0,0.002]
[1727253596250,0.72133635,63933.0,63932.0,0.002]
[1727253596753,0.41362918,63933.0,63932.0,0.002]
[1727253596955,0.72133635,63933.0,63932.0,0.002]
[1727253597755,0.36053635,63933.0,63932.0,0.002]
[1727253598349,0.72133635,63933.0,63932.0,0.002]
[1727253599352,0.72842497,63933.0,63932.0,0.002]
[1727253603749,0.72842497,63933.0,63932.0,0.04883314]
[1727253604452,0.63842497,63933.0,63932.0,0.04883314]
[1727253604656,0.560204,63933.0,63932.0,0.002]
[1727253604848,0.560204,63933.0,63932.0,0.06446392]
[1727253606646,0.199404,63933.0,63932.0,0.06446392]
[1727253606854,0.560204,63933.0,63932.0,0.06446392]
[1727253608162,0.199404,63933.0,63932.0,0.06446392]
[1727253608364,0.560204,63933.0,63932.0,0.06446392]
[1727253612457,0.650204,63933.0,63932.0,0.06446392]
[1727253613162,0.478406,63933.0,63932.0,0.06446392]
[1727253614263,0.62778811,63933.0,63932.0,0.002]
[1727253614564,0.62778811,63933.0,63919.0,0.12504325]
[1727253614565,0.63408579,63933.0,63919.0,0.12504325]
[1727253614766,0.63408579,63933.0,63919.0,0.0036]
[1727253614767,0.078218,63920.0,63919.0,0.0036]
[1727253614962,0.16075012,63920.0,63915.0,0.108624]
[1727253615155,0.3608,63922.0,63915.0,0.108624]
[1727253615156,0.18381427,63916.0,63915.0,0.108624]
[1727253615354,0.20917033,63916.0,63915.0,0.108624]
[1727253615554,0.11535606,63916.0,63915.0,0.108624]
[1727253616171,0.19357906,63916.0,63915.0,0.108624]
[1727253616765,0.10357906,63916.0,63915.0,0.108624]
[1727253617459,0.10357906,63916.0,63915.0,0.115624]
[1727253618366,0.10357906,63916.0,63915.0,0.120624]
[1727253620060,0.078223,63916.0,63915.0,0.120624]
[1727253620769,0.10358445,63916.0,63915.0,0.120624]
[1727253621367,0.078223,63916.0,63915.0,0.120624]
[1727253622361,0.168223,63916.0,63915.0,0.07446392]
[1727253622669,0.168223,63916.0,63915.0,0.012]
[1727253622670,0.21507001,63916.0,63915.0,0.012]
[1727253625079,0.168223,63916.0,63915.0,0.012]
[1727253627373,0.078223,63916.0,63915.0,0.012]
[1727253627567,0.168223,63916.0,63915.0,0.012]
[1727253627765,0.40764701,63919.0,63915.0,0.012]
[1727253627766,0.00096,63919.0,63918.0,0.078221]
[1727253627975,0.44005301,63925.0,63918.0,0.09]
[1727253628185,0.439013,63925.0,63924.0,0.09]
[1727253629177,0.439013,63925.0,63924.0,0.168213]
[1727253630677,0.443013,63925.0,63924.0,0.168213]
[1727253633084,0.533013,63925.0,63924.0,0.078213]
[1727253633886,0.172213,63925.0,63924.0,0.078213]
[1727253634583,0.172213,63925.0,63924.0,0.12493567]
[1727253635576,0.172213,63925.0,63924.0,0.078213]
[1727253635772,0.078217,63921.0,63920.0,0.078218]
[1727253635977,0.078217,63921.0,63920.0,0.12495651]
[1727253636392,0.14933316,63921.0,63920.0,0.078218]
[1727253636985,0.14932539,63921.0,63920.0,0.078218]
[1727253637174,0.14932539,63921.0,63920.0,0.079218]
[1727253639991,0.14932539,63921.0,63920.0,0.001]
[1727253641576,0.22754239,63921.0,63920.0,0.001]
[1727253641782,0.33693924,63921.0,63920.0,0.001]
[1727253642098,0.078227,63913.0,63912.0,0.0036]
[1727253642389,0.078227,63913.0,63908.0,0.0042]
[1727253642390,0.078228,63912.0,63908.0,0.0042]
[1727253642591,0.20220654,63912.0,63908.0,0.0042]
[1727253642891,0.21397854,63912.0,63906.0,0.078235]
[1727253643090,0.09,63909.0,63906.0,0.078235]
[1727253643391,0.09,63909.0,63907.0,0.078234]
[1727253643392,0.14923785,63908.0,63907.0,0.078234]
[1727253644491,0.078234,63908.0,63907.0,0.078234]
[1727253644694,0.078234,63908.0,63907.0,0.092234]
[1727253645780,0.078234,63908.0,63907.0,0.105234]
[1727253645983,0.079234,63908.0,63907.0,0.105234]
[1727253646383,0.079234,63908.0,63907.0,0.16761569]
[1727253655205,0.079234,63908.0,63907.0,0.105234]
[1727253658704,0.079234,63908.0,63907.0,0.16761569]
[1727253659305,0.001,63908.0,63907.0,0.16761569]
[1727253660102,0.001,63908.0,63907.0,0.105234]
[1727253660304,0.001,63908.0,63907.0,0.664674]
[1727253660507,0.001,63908.0,63907.0,0.84325637]
[1727253660803,0.001,63908.0,63907.0,0.92117289]
[1727253661501,0.001,63908.0,63907.0,1.01725804]
[1727253661907,0.001,63908.0,63907.0,0.54781804]
[1727253662108,0.001,63908.0,63907.0,0.45173289]
[1727253662309,0.001,63908.0,63907.0,0.54783871]
[1727253663103,0.001,63908.0,63907.0,0.46992219]
[1727253664011,0.001,63908.0,63907.0,0.46994666]
[1727253664410,0.001,63908.0,63907.0,0.37994666]
[1727253664608,0.001,63908.0,63907.0,0.20136429]
[1727253665006,0.001,63908.0,63907.0,0.18321638]
[1727253665209,0.001,63908.0,63907.0,0.27942146]
[1727253665405,0.001,63908.0,63907.0,0.20143908]
[1727253665798,0.001,63908.0,63907.0,0.27944239]
[1727253666006,0.001,63908.0,63907.0,0.56223908]
[1727253668706,0.079233,63908.0,63907.0,0.3878]
[1727253669006,0.079233,63908.0,63907.0,0.08944067]
[1727253669196,0.079233,63908.0,63907.0,0.027]
[1727253669399,0.079233,63908.0,63907.0,0.0738366]
[1727253669601,0.079233,63908.0,63907.0,0.027]
[1727253669602,1.579233,63908.0,63907.0,0.027]
[1727253670005,1.657466,63908.0,63907.0,0.027]
[1727253670215,0.157466,63908.0,63907.0,0.027]
[1727253673219,0.21998649,63908.0,63907.0,0.027]
[1727253674116,0.58078649,63908.0,63907.0,0.027]
[1727253676007,0.518266,63908.0,63907.0,0.027]
[1727253676411,0.157466,63908.0,63907.0,0.027]
[1727253676612,0.518266,63908.0,63907.0,0.027]
[1727253681220,0.58074735,63908.0,63907.0,0.027]
[1727253681529,0.54363318,63908.0,63907.0,0.027]
[1727253683114,0.54363317,63908.0,63907.0,0.027]
[1727253683826,0.54363318,63908.0,63907.0,0.027]
[1727253687617,0.54363194,63908.0,63907.0,0.027]
[1727253689524,0.518266,63908.0,63907.0,0.027]
[1727253691721,0.518266,63908.0,63907.0,0.07381568]
[1727253694331,0.56512327,63908.0,63907.0,0.027]
[1727253694721,0.20432327,63908.0,63907.0,0.027]
[1727253696235,0.157466,63908.0,63907.0,0.027]
[1727253697233,0.21994236,63908.0,63907.0,0.027]
[1727253698326,0.21994236,63908.0,63907.0,0.08944067]
[1727253698327,0.157466,63908.0,63907.0,0.08944067]
[1727253704241,0.247466,63908.0,63907.0,0.08944067]
[1727253704637,0.43170196,63908.0,63907.0,0.027]
[1727253705139,0.26346896,63908.0,63907.0,0.105234]
[1727253705325,0.16718956,63908.0,63907.0,0.556034]
[1727253705535,0.17212701,63910.0,63907.0,0.556034]
[1727253705536,0.10039603,63910.0,63908.0,0.547673]
[1727253705732,0.14802371,63913.0,63908.0,0.547673]
[1727253705733,0.10951325,63909.0,63908.0,0.547673]
[1727253706036,0.0072,63916.0,63915.0,0.078224]
[1727253706237,0.14442371,63921.0,63920.0,0.078218]
[1727253706540,0.29008859,63921.0,63920.0,0.078218]
[1727253707442,0.14926488,63921.0,63920.0,0.078218]
[1727253707832,0.14926488,63921.0,63920.0,0.079218]
[1727253708229,0.09,63921.0,63920.0,0.079218]
[1727253711840,0.09,63921.0,63920.0,0.12612175]
[1727253713331,0.09,63921.0,63920.0,0.079218]
[1727253722356,0.4508,63923.0,63922.0,0.078216]
[1727253723653,0.4528,63923.0,63922.0,0.078216]
[1727253723850,0.3628,63923.0,63922.0,0.168216]
[1727253724049,0.4528,63923.0,63922.0,0.078216]
[1727253724253,0.4538,63923.0,63922.0,0.078216]
[1727253726648,0.078218,63921.0,63916.0,0.09]
[1727253726849,0.24637699,63920.0,63919.0,0.078219]
[1727253727049,0.078223,63917.0,63915.0,0.18010769]
[1727253727249,0.06977932,63916.0,63909.0,0.0036]
[1727253727452,0.14800532,63915.0,63914.0,0.078226]
[1727253727650,0.10358626,63915.0,63914.0,0.078226]
[1727253727852,0.25800616,63915.0,63914.0,0.078226]
[1727253728254,0.34800616,63915.0,63914.0,0.078226]
[1727253729461,0.34768529,63915.0,63914.0,0.084226]
[1727253729766,0.34768529,63915.0,63914.0,0.091226]
[1727253731372,0.50415861,63915.0,63914.0,0.091226]
[1727253732460,0.34768529,63915.0,63914.0,0.091226]
[1727253734357,0.34791551,63915.0,63914.0,0.091226]
[1727253734659,0.34791551,63915.0,63914.0,0.15366667]
[1727253734660,0.168226,63915.0,63914.0,0.15366667]
[1727253735358,0.168226,63915.0,63914.0,0.091226]
[1727253736867,0.0655,63916.0,63914.0,0.013]
[1727253737056,0.0655,63916.0,63915.0,0.14067667]
[1727253738564,0.0655,63916.0,63915.0,0.078224]
[1727253739069,0.0655,63916.0,63915.0,0.084224]
[1727253739461,0.0655,63916.0,63915.0,0.089224]
[1727253741760,0.18658317,63916.0,63915.0,0.089224]
[1727253742159,0.12108317,63916.0,63915.0,0.089224]
[1727253742355,0.1406367,63917.0,63916.0,0.078223]
[1727253742561,0.16599845,63917.0,63916.0,0.078223]
[1727253743569,0.16599845,63917.0,63916.0,0.083223]
[1727253744769,0.20992716,63917.0,63916.0,0.083223]
[1727253745359,0.20992716,63917.0,63916.0,0.177223]
[1727253745563,0.20992716,63917.0,63916.0,0.538023]
[1727253746275,0.1513347,63917.0,63916.0,0.538023]
[1727253746772,0.0998795,63917.0,63916.0,0.538023]
[1727253748764,0.15161254,63917.0,63916.0,0.538023]
[1727253749269,0.0302,63917.0,63916.0,0.63514404]
[1727253755572,0.0302,63917.0,63916.0,0.63515581]
[1727253755776,0.0302,63917.0,63916.0,0.64315581]
[1727253756075,0.0302,63917.0,63916.0,0.63915581]
[1727253756276,0.0312,63917.0,63916.0,0.63715581]
[1727253756479,0.0312,63917.0,63916.0,0.64915581]
[1727253757273,0.152901,63917.0,63916.0,0.552023]
[1727253758183,0.151901,63917.0,63916.0,0.549023]
[1727253762168,0.10014026,63917.0,63916.0,0.549023]
[1727253762573,0.15189799,63917.0,63916.0,0.549023]
[1727253762883,0.10014026,63917.0,63916.0,0.549023]
[1727253763080,0.10731697,63917.0,63916.0,0.549023]
[1727253763582,0.15189806,63917.0,63916.0,0.549023]
[1727253764274,0.0302,63917.0,63916.0,0.64615773]
[1727253766083,0.0302,63917.0,63916.0,0.7398264]
[1727253766579,0.0302,63917.0,63916.0,0.64615773]
[1727253768370,0.0302,63917.0,63916.0,0.7398264]
[1727253770287,0.0302,63917.0,63916.0,0.73984349]
[1727253770976,0.0302,63917.0,63916.0,0.64984349]
[1727253771481,0.0302,63917.0,63916.0,0.55617482]
[1727253772387,0.10016784,63917.0,63916.0,0.459023]
[1727253772587,0.25664116,63917.0,63916.0,0.459023]
[1727253772788,0.30843413,63917.0,63916.0,0.459023]
[1727253772983,0.36741122,63917.0,63916.0,0.098223]
[1727253773283,0.36741122,63917.0,63916.0,0.459023]
[1727253773485,0.2109379,63917.0,63916.0,0.459023]
[1727253773780,0.2109379,63917.0,63916.0,0.098223]
[1727253773983,0.2109379,63917.0,63916.0,0.459023]
[1727253775089,0.2110153,63917.0,63916.0,0.459023]
[1727253776681,0.2110153,63917.0,63916.0,0.098223]
[1727253776882,0.2110153,63917.0,63916.0,0.459023]
[1727253779411,0.0302,63917.0,63916.0,0.67217635]
[1727253779905,0.0302,63917.0,63916.0,0.57492509]
[1727253780213,0.0302,63917.0,63916.0,0.67216151]
[1727253787520,0.0302,63917.0,63916.0,0.31136151]
[1727253787710,0.0302,63917.0,63916.0,0.67216151]
[1727253788222,0.0302,63917.0,63916.0,0.31136151]
[1727253788409,0.0302,63917.0,63916.0,0.67216151]
[1727253788719,0.0302,63917.0,63916.0,0.75038451]
[1727253794410,0.25665945,63917.0,63916.0,0.537246]
[1727253794609,0.36747298,63917.0,63916.0,0.537246]
[1727253797530,0.36747298,63917.0,63916.0,0.176446]
[1727253797715,0.18667435,63917.0,63916.0,0.176446]
[1727253798029,0.25665987,63917.0,63916.0,0.537246]
[1727253798226,0.3674745,63917.0,63916.0,0.537246]
[1727253800426,0.3674745,63917.0,63916.0,0.176446]
[1727253800726,0.3674745,63917.0,63916.0,0.537246]
[1727253802314,0.23848816,63917.0,63916.0,0.75035354]
[1727253802518,0.0302,63917.0,63916.0,0.75035354]
[1727253802714,0.0302,63917.0,63916.0,0.7503321]
[1727253805822,0.05055173,63921.0,63916.0,0.7503321]
[1727253805823,0.0036,63921.0,63920.0,0.078218]
[1727253806021,0.04695173,63923.0,63922.0,0.078216]
[1727253806224,0.04695173,63923.0,63922.0,0.53622851]
[1727253808429,0.11085173,63924.0,63923.0,0.078215]
[1727253808737,0.11085173,63924.0,63923.0,0.17505024]
[1727253809034,0.11085173,63924.0,63923.0,0.53585024]
[1727253809639,0.11085173,63924.0,63923.0,0.53985024]
[1727253810433,0.11085173,63924.0,63923.0,0.54185024]
[1727253812436,0.0639,63924.0,63923.0,0.61311905]
[1727253812635,0.11083087,63924.0,63923.0,0.80710281]
[1727253812941,0.0639,63924.0,63923.0,0.90085965]
[1727253813338,0.0639,63924.0,63923.0,0.80710281]
[1727253813538,0.0639,63924.0,63923.0,0.54184537]
[1727253813736,0.0639,63924.0,63920.0,0.09375684]
[1727253813737,0.142113,63924.0,63921.0,0.07809594]
[1727253813940,0.168216,63922.0,63921.0,0.06249457]
[1727253814143,0.168216,63922.0,63921.0,0.01259457]
[1727253814537,0.168216,63922.0,63915.0,0.078224]
[1727253814538,0.078223,63917.0,63915.0,0.078224]
[1727253814740,0.168223,63916.0,63915.0,0.078224]
[1727253815949,0.168223,63916.0,63915.0,0.091224]
[1727253816832,0.29449196,63916.0,63915.0,0.091224]
[1727253817046,0.29549196,63916.0,63915.0,0.101224]
[1727253818339,0.29547566,63916.0,63915.0,0.101224]
[1727253819436,0.42068029,63916.0,63915.0,0.101224]
[1727253820450,0.42051484,63916.0,63915.0,0.101224]
[1727253820748,0.29547566,63916.0,63915.0,0.101224]
[1727253824346,0.49783786,63916.0,63915.0,0.101224]
[1727253824748,0.169223,63916.0,63915.0,0.101224]
[1727253826741,0.169223,63916.0,63915.0,0.14804217]
[1727253831838,0.1945853,63916.0,63915.0,0.101224]
[1727253832337,0.1945853,63916.0,63915.0,0.023]
[1727253839857,0.169223,63916.0,63915.0,0.023]
[1727253840454,0.21610381,63916.0,63915.0,0.023]
[1727253842359,0.169223,63916.0,63915.0,0.023]
[1727253843469,0.23173075,63916.0,63915.0,0.023]
[1727253843780,0.14173075,63916.0,63915.0,0.101224]
[1727253843975,0.23173075,63916.0,63915.0,0.101224]
[1727253845471,0.169223,63916.0,63915.0,0.101224]
[1727253845873,0.23182022,63916.0,63915.0,0.101224]
[1727253846584,0.169223,63916.0,63915.0,0.101224]
[1727253846966,0.24109323,63916.0,63915.0,0.101224]
[1727253849387,0.16287023,63916.0,63915.0,0.101224]
[1727253851678,0.07287023,63916.0,63915.0,0.101224]
[1727253851886,0.16287023,63916.0,63915.0,0.101224]
[1727253854977,0.15361023,63916.0,63915.0,0.1968768]
[1727253855376,0.15361023,63916.0,63915.0,0.19686716]
[1727253855577,0.091,63916.0,63915.0,0.2750305]
[1727253856282,0.091,63916.0,63915.0,0.19686716]
[1727253858977,0.091,63916.0,63915.0,0.27501608]
[1727253859180,0.091,63916.0,63915.0,0.19686716]
[1727253859478,0.091,63916.0,63915.0,0.27501382]
[1727253861987,0.16295113,63916.0,63915.0,0.101224]
[1727253864389,0.24117413,63916.0,63915.0,0.101224]
[1727253865284,0.24117124,63916.0,63915.0,0.101224]
[1727253867886,0.24115661,63916.0,63915.0,0.101224]
[1727253868884,0.1945847,63916.0,63915.0,0.101224]
[1727253869091,0.169223,63916.0,63915.0,0.101224]
[1727253873599,0.169223,63916.0,63915.0,0.17937066]
[1727253877608,0.079223,63916.0,63915.0,0.17937066]
[1727253880508,0.079223,63916.0,63915.0,0.27476552]
[1727253881803,0.001,63916.0,63915.0,0.27476552]
[1727253882599,0.001,63916.0,63915.0,0.7608411]
[1727253882801,0.001,63916.0,63915.0,0.64741886]
[1727253883007,0.001,63916.0,63915.0,0.76086558]
[1727253883599,0.001,63916.0,63915.0,0.64741886]
[1727253883999,0.02635878,63916.0,63915.0,0.552024]
[1727253884309,0.07348376,63916.0,63915.0,0.552024]
[1727253884899,0.07348631,63916.0,63915.0,0.552024]
[1727253888306,0.02635867,63916.0,63915.0,0.552024]
[1727253889416,0.02635867,63916.0,63915.0,0.191224]
[1727253889715,0.02635867,63916.0,63915.0,0.552024]
[1727253892220,0.001,63916.0,63915.0,0.64702981]
[1727253892907,0.001,63916.0,63915.0,0.28622981]
[1727253893108,0.001,63916.0,63915.0,0.64702981]
[1727253893617,0.001,63916.0,63915.0,0.28622981]
[1727253894220,0.001,63916.0,63915.0,0.64702981]
[1727253894716,0.001,63916.0,63915.0,0.64702721]
[1727253895815,0.001,63916.0,63915.0,0.81896975]
[1727253897519,0.001,63916.0,63915.0,0.45816975]
[1727253897817,0.001,63916.0,63915.0,0.81896975]
[1727253898924,0.001,63916.0,63915.0,0.72525121]
[1727253900218,0.001,63916.0,63915.0,0.64702721]
[1727253900422,0.001,63916.0,63915.0,0.65071057]
[1727253900620,0.001,63916.0,63915.0,0.28991057]
[1727253900914,0.001,63916.0,63915.0,0.19622721]
[1727253901624,0.079223,63916.0,63915.0,0.101224]
[1727253902016,0.12610869,63916.0,63915.0,0.101224]
[1727253903921,0.21610869,63916.0,63915.0,0.101224]
[1727253905208,0.04788569,63916.0,63915.0,0.101224]
[1727253905415,0.001,63916.0,63915.0,0.191224]
[1727253905718,0.001,63916.0,63915.0,0.28639498]
[1727253907018,0.02635943,63916.0,63915.0,0.191224]
[1727253907324,0.04813567,63916.0,63915.0,0.101224]
[1727253907521,0.0734951,63916.0,63915.0,0.101224]
[1727253909222,0.0734951,63916.0,63915.0,0.462024]
[1727253909817,0.0734951,63916.0,63915.0,0.101224]
[1727253910012,0.0734951,63916.0,63915.0,0.462024]
[1727253911826,0.0734951,63916.0,63915.0,0.552024]
[1727253914226,0.001,63916.0,63915.0,0.64711228]
[1727253919139,0.001,63916.0,63915.0,0.55711228]
[1727253922132,0.02635949,63916.0,63915.0,0.462024]
[1727253922840,0.12821992,63916.0,63915.0,0.462024]
[1727253925145,0.12821992,63916.0,63915.0,0.101224]